[Event "Titled Tuesday Blitz March 08 Late 2022"]
[White "Kujawski, Adam"]
[Black "Denishev, Marat"]
[WhiteFideId "1100920"]
[BlackFideId "24131563"]
[WhiteElo "2336"]
[BlackElo "2561"]
[Result "1-0"]
[Round "03"]
[TimeControl "180+1"]
[Date "2022.03.09"]
[WhiteClock "0:00:04"]
[BlackClock "0:00:03"]

1. e4 {[%clk 0:02:35]}  c6 {[%clk 0:02:57]} 2. d4 {[%clk 0:02:35]}  d5 {[%clk 0:02:57]} 3. Nc3 {[%clk 0:02:35]}  dxe4 {[%clk 0:02:56]} 4. Nxe4 {[%clk 0:02:35]}  Nf6 {[%clk 0:02:56]} 5. Nxf6+ {[%clk 0:02:35]}  exf6 {[%clk 0:02:57]} 6. Bc4 {[%clk 0:02:35]}  Bd6 {[%clk 0:02:57]} 7. Qe2+ {[%clk 0:02:35]}  Qe7 {[%clk 0:02:56]} 8. Qxe7+ {[%clk 0:02:34]}  Bxe7 {[%clk 0:02:57]} 9. Ne2 {[%clk 0:02:33]}  Bf5 {[%clk 0:02:54]} 10. c3 {[%clk 0:02:30]}  Nd7 {[%clk 0:02:53]} 11. Bd2 {[%clk 0:02:16]}  Nb6 {[%clk 0:02:48]} 12. Bb3 {[%clk 0:02:16]}  a5 {[%clk 0:02:48]} 13. Ng3 {[%clk 0:01:59]}  Be6 {[%clk 0:02:46]} 14. Bxe6 {[%clk 0:01:57]}  fxe6 {[%clk 0:02:47]} 15. b3 {[%clk 0:01:53]}  a4 {[%clk 0:02:46]} 16. Ke2 {[%clk 0:01:53]}  Kf7 {[%clk 0:02:45]} 17. Kd3 {[%clk 0:01:02]}  Rhd8 {[%clk 0:02:37]} 18. Kc2 {[%clk 0:01:00]}  Rd5 {[%clk 0:02:23]} 19. Ne2 {[%clk 0:00:58]}  c5 {[%clk 0:01:56]} 20. c4 {[%clk 0:00:55]}  Rd7 {[%clk 0:01:43]} 21. Bc3 {[%clk 0:00:55]}  Rc8 {[%clk 0:01:15]} 22. Rhd1 {[%clk 0:00:47]}  Rdd8 {[%clk 0:01:10]} 23. f3 {[%clk 0:00:43]}  Nd7 {[%clk 0:01:06]} 24. d5 {[%clk 0:00:39]}  Nf8 {[%clk 0:00:47]} 25. Rab1 {[%clk 0:00:37]}  a3 {[%clk 0:00:45]} 26. Nf4 {[%clk 0:00:31]}  e5 {[%clk 0:00:25]} 27. Nd3 {[%clk 0:00:31]}  Bd6 {[%clk 0:00:26]} 28. g4 {[%clk 0:00:29]}  Ng6 {[%clk 0:00:25]} 29. Rf1 {[%clk 0:00:23]}  Re8 {[%clk 0:00:24]} 30. Rbe1 {[%clk 0:00:22]}  Rb8 {[%clk 0:00:23]} 31. Nf2 {[%clk 0:00:21]}  Bc7 {[%clk 0:00:20]} 32. Ne4 {[%clk 0:00:21]}  b6 {[%clk 0:00:19]} 33. Ng3 {[%clk 0:00:16]}  Nf4 {[%clk 0:00:19]} 34. Nf5 {[%clk 0:00:15]}  g6 {[%clk 0:00:19]} 35. Ne3 {[%clk 0:00:14]}  b5 {[%clk 0:00:19]} 36. Bd2 {[%clk 0:00:13]}  Red8 {[%clk 0:00:14]} 37. Bc3 {[%clk 0:00:10]}  h5 {[%clk 0:00:09]} 38. h4 {[%clk 0:00:08]}  hxg4 {[%clk 0:00:06]} 39. fxg4 {[%clk 0:00:09]}  Rh8 {[%clk 0:00:05]} 40. Rh1 {[%clk 0:00:09]}  Bd6 {[%clk 0:00:04]} 41. g5 {[%clk 0:00:08]}  fxg5 {[%clk 0:00:03]} 42. hxg5 {[%clk 0:00:08]}  Rbe8 {[%clk 0:00:03]} 43. Ng4 {[%clk 0:00:07]}  bxc4 {[%clk 0:00:02]} 44. bxc4 {[%clk 0:00:07]}  Rh5 {[%clk 0:00:02]} 45. Nf6 {[%clk 0:00:05]}  Rxh1 {[%clk 0:00:02]} 46. Rxh1 {[%clk 0:00:06]}  Rb8 {[%clk 0:00:01]} 47. Rh7+ {[%clk 0:00:06]}  Kf8 {[%clk 0:00:01]} 48. Rh8+ {[%clk 0:00:06]}  Kf7 {[%clk 0:00:02]} 49. Rxb8 {[%clk 0:00:06]}  Bxb8 {[%clk 0:00:02]} 50. Ne4 {[%clk 0:00:06]}  Ba7 {[%clk 0:00:02]} 51. Bxe5 {[%clk 0:00:06]}  Ne2 {[%clk 0:00:01]} 52. Kd3 {[%clk 0:00:04]}  Ng1 {[%clk 0:00:02]} 53. Nd6+ {[%clk 0:00:04]}  Ke7 {[%clk 0:00:02]} 54. Nc8+ {[%clk 0:00:03]}  Kd7 {[%clk 0:00:02]} 55. Nxa7 {[%clk 0:00:04]}  Nf3 {[%clk 0:00:02]} 56. Bf6 {[%clk 0:00:04]}  Nd4 {[%clk 0:00:03]} 57. Nc6 {[%clk 0:00:04]} 1-0


[Site "https://www.chess.com"]

[Event "Titled Tuesday Blitz March 08 Late 2022"]
[White "Lopez Del Alamo, Antonio"]
[Black "Jacobson, Aaron"]
[WhiteFideId "2227339"]
[BlackFideId "2089912"]
[WhiteElo "2302"]
[BlackElo "2556"]
[Result "1-0"]
[Round "03"]
[TimeControl "180+1"]
[Date "2022.03.09"]
[WhiteClock "0:00:23"]
[BlackClock "0:00:04"]

1. e4 {[%clk 0:03:00]}  d5 {[%clk 0:02:59]} 2. exd5 {[%clk 0:02:46]}  Nf6 {[%clk 0:03:00]} 3. d4 {[%clk 0:02:46]}  Bg4 {[%clk 0:03:00]} 4. Be2 {[%clk 0:02:42]}  Bxe2 {[%clk 0:03:00]} 5. Qxe2 {[%clk 0:02:43]}  Qxd5 {[%clk 0:03:01]} 6. Nf3 {[%clk 0:02:42]}  e6 {[%clk 0:03:01]} 7. O-O {[%clk 0:02:41]}  Nc6 {[%clk 0:03:02]} 8. c4 {[%clk 0:02:40]}  Nxd4 {[%clk 0:03:02]} 9. Nxd4 {[%clk 0:02:39]}  Qxd4 {[%clk 0:03:03]} 10. Rd1 {[%clk 0:02:36]}  Qg4 {[%clk 0:03:02]} 11. f3 {[%clk 0:02:30]}  Bc5+ {[%clk 0:03:01]} 12. Kh1 {[%clk 0:02:30]}  Qh5 {[%clk 0:03:02]} 13. Nc3 {[%clk 0:02:28]}  O-O {[%clk 0:03:00]} 14. Bf4 {[%clk 0:02:22]}  c6 {[%clk 0:02:54]} 15. Be5 {[%clk 0:02:16]}  Rfd8 {[%clk 0:02:49]} 16. Bxf6 {[%clk 0:02:14]}  gxf6 {[%clk 0:02:50]} 17. Ne4 {[%clk 0:02:15]}  Be7 {[%clk 0:02:50]} 18. Rxd8+ {[%clk 0:02:11]}  Rxd8 {[%clk 0:02:50]} 19. Rd1 {[%clk 0:02:12]}  Qa5 {[%clk 0:02:42]} 20. a3 {[%clk 0:02:05]}  f5 {[%clk 0:02:41]} 21. Ng3 {[%clk 0:02:00]}  Rxd1+ {[%clk 0:02:38]} 22. Qxd1 {[%clk 0:01:59]}  Qd8 {[%clk 0:02:39]} 23. Qc2 {[%clk 0:01:54]}  Qd4 {[%clk 0:02:39]} 24. Ne2 {[%clk 0:01:45]}  Qf2 {[%clk 0:02:38]} 25. Qd1 {[%clk 0:01:33]}  h5 {[%clk 0:02:28]} 26. h3 {[%clk 0:01:28]}  Kf8 {[%clk 0:02:28]} 27. Nf4 {[%clk 0:01:25]}  h4 {[%clk 0:02:21]} 28. b4 {[%clk 0:01:23]}  Ke8 {[%clk 0:02:18]} 29. Nd3 {[%clk 0:01:19]}  Qe3 {[%clk 0:02:13]} 30. c5 {[%clk 0:01:18]}  Bd8 {[%clk 0:02:03]} 31. f4 {[%clk 0:01:17]}  Bc7 {[%clk 0:02:02]} 32. Ne5 {[%clk 0:01:13]}  Bxe5 {[%clk 0:02:00]} 33. fxe5 {[%clk 0:01:14]}  Qxe5 {[%clk 0:01:59]} 34. Qh5 {[%clk 0:01:14]}  Qe1+ {[%clk 0:01:59]} 35. Kh2 {[%clk 0:01:13]}  Qg3+ {[%clk 0:02:00]} 36. Kh1 {[%clk 0:01:13]}  Ke7 {[%clk 0:01:52]} 37. Qd1 {[%clk 0:01:10]}  Qxa3 {[%clk 0:01:18]} 38. Qd6+ {[%clk 0:01:09]}  Kf6 {[%clk 0:01:19]} 39. Qd8+ {[%clk 0:00:58]}  Ke5 {[%clk 0:01:19]} 40. Qc7+ {[%clk 0:00:53]}  Ke4 {[%clk 0:01:18]} 41. Qxb7 {[%clk 0:00:51]}  Qa1+ {[%clk 0:00:50]} 42. Kh2 {[%clk 0:00:50]}  Qe5+ {[%clk 0:00:50]} 43. Kh1 {[%clk 0:00:50]}  Qa1+ {[%clk 0:00:45]} 44. Kh2 {[%clk 0:00:49]}  Qa4 {[%clk 0:00:46]} 45. b5 {[%clk 0:00:48]}  Kf4 {[%clk 0:00:28]} 46. Qxc6 {[%clk 0:00:46]}  Kg5 {[%clk 0:00:23]} 47. Qd6 {[%clk 0:00:35]}  Qxb5 {[%clk 0:00:17]} 48. c6 {[%clk 0:00:35]}  Qb6 {[%clk 0:00:08]} 49. Qe7+ {[%clk 0:00:28]}  Kg6 {[%clk 0:00:07]} 50. c7 {[%clk 0:00:27]}  Qf2 {[%clk 0:00:03]} 51. Qd6 {[%clk 0:00:26]}  f4 {[%clk 0:00:03]} 52. Qd3+ {[%clk 0:00:24]}  f5 {[%clk 0:00:04]} 53. c8=Q {[%clk 0:00:23]} 1-0


[Site "https://www.chess.com"]

[Event "Titled Tuesday Blitz March 08 Late 2022"]
[White "Maghsoodloo, Parham"]
[Black "Manukyan, Sargis A."]
[WhiteFideId "12539929"]
[BlackFideId "13303970"]
[WhiteElo "2630"]
[BlackElo "2187"]
[Result "1-0"]
[Round "03"]
[TimeControl "180+1"]
[Date "2022.03.08"]
[WhiteClock "0:00:06"]
[BlackClock "0:00:10"]

1. Nf3 {[%clk 0:02:56]}  d5 {[%clk 0:02:59]} 2. d4 {[%clk 0:02:57]}  e6 {[%clk 0:02:59]} 3. c4 {[%clk 0:02:57]}  Nf6 {[%clk 0:03:00]} 4. g3 {[%clk 0:02:56]}  Be7 {[%clk 0:03:01]} 5. Bg2 {[%clk 0:02:56]}  O-O {[%clk 0:03:01]} 6. O-O {[%clk 0:02:57]}  dxc4 {[%clk 0:03:02]} 7. Qc2 {[%clk 0:02:54]}  a6 {[%clk 0:03:02]} 8. a4 {[%clk 0:02:51]}  Bd7 {[%clk 0:03:02]} 9. Bg5 {[%clk 0:02:51]}  Bc6 {[%clk 0:02:57]} 10. Rd1 {[%clk 0:02:50]}  Bxf3 {[%clk 0:02:39]} 11. Bxf3 {[%clk 0:02:43]}  Nc6 {[%clk 0:02:39]} 12. e3 {[%clk 0:02:14]}  Na5 {[%clk 0:02:21]} 13. Nd2 {[%clk 0:02:12]}  c5 {[%clk 0:02:05]} 14. dxc5 {[%clk 0:02:01]}  Qc7 {[%clk 0:02:00]} 15. Bxf6 {[%clk 0:01:25]}  Bxf6 {[%clk 0:01:53]} 16. Ne4 {[%clk 0:01:25]}  Be7 {[%clk 0:01:47]} 17. Qc3 {[%clk 0:01:22]}  f5 {[%clk 0:01:37]} 18. Nd6 {[%clk 0:01:21]}  Qxc5 {[%clk 0:01:34]} 19. b4 {[%clk 0:01:17]}  Qc7 {[%clk 0:01:28]} 20. bxa5 {[%clk 0:01:09]}  Bxd6 {[%clk 0:01:27]} 21. Rac1 {[%clk 0:00:42]}  Rac8 {[%clk 0:01:15]} 22. Be2 {[%clk 0:00:42]}  Qe7 {[%clk 0:00:56]} 23. Bxc4 {[%clk 0:00:40]}  Rc7 {[%clk 0:00:46]} 24. Qb3 {[%clk 0:00:22]}  Kf7 {[%clk 0:00:38]} 25. Bxe6+ {[%clk 0:00:13]}  Qxe6 {[%clk 0:00:36]} 26. Rxc7+ {[%clk 0:00:13]}  Bxc7 {[%clk 0:00:33]} 27. Rd7+ {[%clk 0:00:13]}  Kf6 {[%clk 0:00:31]} 28. Qxe6+ {[%clk 0:00:13]}  Kxe6 {[%clk 0:00:31]} 29. Rxc7 {[%clk 0:00:14]}  Rf7 {[%clk 0:00:18]} 30. Rxf7 {[%clk 0:00:13]}  Kxf7 {[%clk 0:00:19]} 31. f3 {[%clk 0:00:08]}  Ke6 {[%clk 0:00:20]} 32. Kf1 {[%clk 0:00:08]}  Kd5 {[%clk 0:00:21]} 33. Ke2 {[%clk 0:00:08]}  Kc4 {[%clk 0:00:21]} 34. e4 {[%clk 0:00:08]}  fxe4 {[%clk 0:00:17]} 35. fxe4 {[%clk 0:00:09]}  Kb4 {[%clk 0:00:17]} 36. e5 {[%clk 0:00:08]}  Kc5 {[%clk 0:00:14]} 37. Ke3 {[%clk 0:00:08]}  Kd5 {[%clk 0:00:14]} 38. Kf4 {[%clk 0:00:08]}  g6 {[%clk 0:00:14]} 39. h4 {[%clk 0:00:08]}  h6 {[%clk 0:00:11]} 40. g4 {[%clk 0:00:08]}  h5 {[%clk 0:00:07]} 41. gxh5 {[%clk 0:00:07]}  gxh5 {[%clk 0:00:07]} 42. Kf5 {[%clk 0:00:07]}  Kc5 {[%clk 0:00:05]} 43. e6 {[%clk 0:00:08]}  Kd6 {[%clk 0:00:06]} 44. Kf6 {[%clk 0:00:08]}  b5 {[%clk 0:00:07]} 45. axb6 {[%clk 0:00:07]}  Kc6 {[%clk 0:00:08]} 46. e7 {[%clk 0:00:07]}  a5 {[%clk 0:00:09]} 47. e8=Q+ {[%clk 0:00:07]}  Kb7 {[%clk 0:00:10]} 48. Qd7+ {[%clk 0:00:07]}  Ka6 {[%clk 0:00:10]} 49. Qa7# {[%clk 0:00:06]} 1-0


[Site "https://www.chess.com"]

[Event "Titled Tuesday Blitz March 08 Late 2022"]
[White "Martin Barcelo, Carles"]
[Black "Hartikainen, Jarmo"]
[WhiteFideId "24561444"]
[BlackFideId "503134"]
[WhiteElo "1875"]
[BlackElo "2108"]
[Result "1-0"]
[Round "03"]
[TimeControl "180+1"]
[Date "2022.03.09"]
[WhiteClock "0:01:40"]
[BlackClock "0:00:52"]

1. e4 {[%clk 0:03:00]}  c5 {[%clk 0:02:58]} 2. Nf3 {[%clk 0:02:58]}  Nc6 {[%clk 0:02:59]} 3. Bb5 {[%clk 0:02:58]}  g6 {[%clk 0:02:57]} 4. Bxc6 {[%clk 0:02:58]}  dxc6 {[%clk 0:02:57]} 5. d3 {[%clk 0:02:58]}  Bg4 {[%clk 0:02:56]} 6. Nbd2 {[%clk 0:02:57]}  Bg7 {[%clk 0:02:55]} 7. h3 {[%clk 0:02:57]}  Bxf3 {[%clk 0:02:55]} 8. Nxf3 {[%clk 0:02:58]}  e5 {[%clk 0:02:54]} 9. O-O {[%clk 0:02:57]}  h6 {[%clk 0:02:50]} 10. a4 {[%clk 0:02:56]}  a5 {[%clk 0:02:43]} 11. Be3 {[%clk 0:02:56]}  b6 {[%clk 0:02:43]} 12. Nd2 {[%clk 0:02:56]}  Nf6 {[%clk 0:02:39]} 13. Nc4 {[%clk 0:02:54]}  Qc7 {[%clk 0:02:34]} 14. f4 {[%clk 0:02:52]}  Nd7 {[%clk 0:02:30]} 15. f5 {[%clk 0:02:43]}  O-O {[%clk 0:02:28]} 16. Qg4 {[%clk 0:02:32]}  Kh7 {[%clk 0:02:24]} 17. Rf2 {[%clk 0:02:16]}  b5 {[%clk 0:02:09]} 18. Na3 {[%clk 0:01:54]}  Rab8 {[%clk 0:02:00]} 19. b3 {[%clk 0:01:52]}  bxa4 {[%clk 0:01:31]} 20. bxa4 {[%clk 0:01:53]}  Rb4 {[%clk 0:01:25]} 21. Nc4 {[%clk 0:01:53]}  Qb8 {[%clk 0:01:00]} 22. fxg6+ {[%clk 0:01:48]}  fxg6 {[%clk 0:00:59]} 23. Qxd7 {[%clk 0:01:46]}  Rxf2 {[%clk 0:00:51]} 24. Bxf2 {[%clk 0:01:43]}  Rb1+ {[%clk 0:00:51]} 25. Rxb1 {[%clk 0:01:44]}  Qxb1+ {[%clk 0:00:52]} 26. Kh2 {[%clk 0:01:44]}  Qxc2 {[%clk 0:00:52]} 27. Bg3 {[%clk 0:01:40]} 1-0


[Site "https://www.chess.com"]

[Event "Titled Tuesday Blitz March 08 Late 2022"]
[White "Martin Duque, Jesus"]
[Black "Nikologorsky, Matfei"]
[WhiteFideId "2208954"]
[BlackFideId "24102474"]
[WhiteElo "2555"]
[BlackElo "2300"]
[Result "0-1"]
[Round "03"]
[TimeControl "180+1"]
[Date "2022.03.09"]
[WhiteClock "0:00:18"]
[BlackClock "0:00:09"]

1. c4 {[%clk 0:02:59]}  e5 {[%clk 0:02:59]} 2. Nc3 {[%clk 0:02:58]}  Nf6 {[%clk 0:02:59]} 3. Nf3 {[%clk 0:02:58]}  Nc6 {[%clk 0:02:59]} 4. e3 {[%clk 0:02:54]}  d5 {[%clk 0:02:45]} 5. cxd5 {[%clk 0:02:54]}  Nxd5 {[%clk 0:02:45]} 6. Qc2 {[%clk 0:02:55]}  Be7 {[%clk 0:02:41]} 7. a3 {[%clk 0:02:53]}  O-O {[%clk 0:02:39]} 8. Be2 {[%clk 0:02:54]}  Re8 {[%clk 0:02:21]} 9. O-O {[%clk 0:02:51]}  Bf8 {[%clk 0:02:21]} 10. d3 {[%clk 0:02:32]}  Nxc3 {[%clk 0:02:17]} 11. bxc3 {[%clk 0:02:27]}  Be6 {[%clk 0:01:58]} 12. Rb1 {[%clk 0:02:20]}  b6 {[%clk 0:01:57]} 13. d4 {[%clk 0:02:15]}  exd4 {[%clk 0:01:56]} 14. cxd4 {[%clk 0:02:14]}  Ne7 {[%clk 0:01:47]} 15. Bd3 {[%clk 0:02:09]}  Ng6 {[%clk 0:01:44]} 16. Bb2 {[%clk 0:01:58]}  c5 {[%clk 0:01:38]} 17. Bb5 {[%clk 0:01:52]}  Bd7 {[%clk 0:01:34]} 18. Bc4 {[%clk 0:01:48]}  Bg4 {[%clk 0:01:20]} 19. Qb3 {[%clk 0:01:42]}  Qe7 {[%clk 0:01:07]} 20. Bd5 {[%clk 0:01:35]}  Rac8 {[%clk 0:01:03]} 21. dxc5 {[%clk 0:01:35]}  Rxc5 {[%clk 0:01:01]} 22. h3 {[%clk 0:01:31]}  Be6 {[%clk 0:00:48]} 23. Rfd1 {[%clk 0:01:22]}  Bxd5 {[%clk 0:00:46]} 24. Rxd5 {[%clk 0:01:23]}  Qe6 {[%clk 0:00:44]} 25. Rbd1 {[%clk 0:01:23]}  Rd8 {[%clk 0:00:44]} 26. e4 {[%clk 0:01:20]}  Rdxd5 {[%clk 0:00:32]} 27. exd5 {[%clk 0:01:17]}  Qd7 {[%clk 0:00:31]} 28. a4 {[%clk 0:01:01]}  Nf4 {[%clk 0:00:26]} 29. d6 {[%clk 0:01:00]}  Bxd6 {[%clk 0:00:18]} 30. Be5 {[%clk 0:00:59]}  Rxe5 {[%clk 0:00:08]} 31. Nxe5 {[%clk 0:00:57]}  Qc7 {[%clk 0:00:09]} 32. Nxf7 {[%clk 0:00:51]}  Qxf7 {[%clk 0:00:08]} 33. Qxf7+ {[%clk 0:00:51]}  Kxf7 {[%clk 0:00:09]} 34. Rxd6 {[%clk 0:00:51]}  Ke7 {[%clk 0:00:10]} 35. Rc6 {[%clk 0:00:49]}  Kd7 {[%clk 0:00:10]} 36. Rc4 {[%clk 0:00:49]}  Ne6 {[%clk 0:00:11]} 37. g4 {[%clk 0:00:46]}  Kd6 {[%clk 0:00:09]} 38. Kh2 {[%clk 0:00:41]}  Nc5 {[%clk 0:00:09]} 39. f4 {[%clk 0:00:34]}  Kd5 {[%clk 0:00:08]} 40. Rb4 {[%clk 0:00:34]}  Nd3 {[%clk 0:00:09]} 41. Rb5+ {[%clk 0:00:33]}  Kd6 {[%clk 0:00:09]} 42. Kg3 {[%clk 0:00:33]}  Nc5 {[%clk 0:00:09]} 43. Rb4 {[%clk 0:00:29]}  Kc6 {[%clk 0:00:08]} 44. h4 {[%clk 0:00:30]}  a5 {[%clk 0:00:09]} 45. Rc4 {[%clk 0:00:29]}  Kd5 {[%clk 0:00:09]} 46. Rc1 {[%clk 0:00:28]}  Nxa4 {[%clk 0:00:09]} 47. f5 {[%clk 0:00:28]}  Nc5 {[%clk 0:00:09]} 48. g5 {[%clk 0:00:27]}  a4 {[%clk 0:00:10]} 49. Rd1+ {[%clk 0:00:23]}  Ke5 {[%clk 0:00:10]} 50. Re1+ {[%clk 0:00:23]}  Kxf5 {[%clk 0:00:10]} 51. Re3 {[%clk 0:00:21]}  b5 {[%clk 0:00:10]} 52. Rf3+ {[%clk 0:00:21]}  Ke6 {[%clk 0:00:09]} 53. Kg4 {[%clk 0:00:22]}  b4 {[%clk 0:00:09]} 54. Rf4 {[%clk 0:00:21]}  b3 {[%clk 0:00:08]} 55. Rc4 {[%clk 0:00:22]}  b2 {[%clk 0:00:09]} 56. Rb4 {[%clk 0:00:20]}  Nb3 {[%clk 0:00:08]} 57. Rxb3 {[%clk 0:00:18]}  axb3 {[%clk 0:00:09]} 0-1


[Site "https://www.chess.com"]

[Event "Titled Tuesday Blitz March 08 Late 2022"]
[White "Martinez Alcantara, Jose Eduardo"]
[Black "Bryakin, Mikhail"]
[WhiteFideId "3805662"]
[BlackFideId "4165314"]
[WhiteElo "2690"]
[BlackElo "2417"]
[Result "1-0"]
[Round "03"]
[TimeControl "180+1"]
[Date "2022.03.08"]
[WhiteClock "0:01:22"]
[BlackClock "0:01:05"]

1. e4 {[%clk 0:03:00]}  c5 {[%clk 0:02:59]} 2. Nf3 {[%clk 0:02:59]}  Nc6 {[%clk 0:02:59]} 3. Nc3 {[%clk 0:02:59]}  e5 {[%clk 0:02:59]} 4. Bc4 {[%clk 0:02:59]}  d6 {[%clk 0:02:57]} 5. d3 {[%clk 0:02:59]}  h6 {[%clk 0:02:58]} 6. h3 {[%clk 0:02:58]}  Nf6 {[%clk 0:02:58]} 7. Nd5 {[%clk 0:02:57]}  Be6 {[%clk 0:02:57]} 8. Nxf6+ {[%clk 0:02:56]}  Qxf6 {[%clk 0:02:58]} 9. c3 {[%clk 0:02:56]}  O-O-O {[%clk 0:02:57]} 10. Qb3 {[%clk 0:02:34]}  Na5 {[%clk 0:02:53]} 11. Bxe6+ {[%clk 0:02:33]}  Qxe6 {[%clk 0:02:48]} 12. Qxe6+ {[%clk 0:02:31]}  fxe6 {[%clk 0:02:47]} 13. Ke2 {[%clk 0:02:23]}  Be7 {[%clk 0:02:33]} 14. b4 {[%clk 0:02:22]}  cxb4 {[%clk 0:02:31]} 15. cxb4 {[%clk 0:02:23]}  Nc6 {[%clk 0:02:32]} 16. b5 {[%clk 0:02:22]}  Nd4+ {[%clk 0:02:32]} 17. Nxd4 {[%clk 0:02:22]}  exd4 {[%clk 0:02:33]} 18. f4 {[%clk 0:02:13]}  e5 {[%clk 0:02:32]} 19. f5 {[%clk 0:02:12]}  Bg5 {[%clk 0:02:31]} 20. h4 {[%clk 0:02:09]}  Bxc1 {[%clk 0:02:31]} 21. Raxc1+ {[%clk 0:02:10]}  Kd7 {[%clk 0:02:31]} 22. Rh3 {[%clk 0:02:06]}  Rhf8 {[%clk 0:02:16]} 23. Rg3 {[%clk 0:02:05]}  Rf7 {[%clk 0:02:16]} 24. Rg6 {[%clk 0:02:05]}  Rg8 {[%clk 0:02:14]} 25. h5 {[%clk 0:01:55]}  Rf6 {[%clk 0:02:04]} 26. Kf3 {[%clk 0:01:39]}  Rf7 {[%clk 0:01:40]} 27. g4 {[%clk 0:01:38]}  Ra8 {[%clk 0:01:33]} 28. g5 {[%clk 0:01:33]}  hxg5 {[%clk 0:01:33]} 29. Kg4 {[%clk 0:01:33]}  Rh8 {[%clk 0:01:26]} 30. Kxg5 {[%clk 0:01:31]}  Re7 {[%clk 0:01:25]} 31. a4 {[%clk 0:01:30]}  Ra8 {[%clk 0:01:09]} 32. a5 {[%clk 0:01:29]}  Rf7 {[%clk 0:01:09]} 33. b6 {[%clk 0:01:22]}  axb6 {[%clk 0:01:09]} 34. axb6 {[%clk 0:01:22]}  Ra2 {[%clk 0:01:04]} 35. Rc7+ {[%clk 0:01:22]}  Ke8 {[%clk 0:01:05]} 36. Re6+ {[%clk 0:01:22]} 1-0


[Site "https://www.chess.com"]

[Event "Titled Tuesday Blitz March 08 Late 2022"]
[White "Mogranzini, Roberto"]
[Black "Baker, Chris W"]
[WhiteFideId "810894"]
[BlackFideId "401676"]
[WhiteElo "2469"]
[BlackElo "2268"]
[Result "1-0"]
[Round "03"]
[TimeControl "180+1"]
[Date "2022.03.09"]
[WhiteClock "0:00:24"]
[BlackClock "0:00:02"]

1. e4 {[%clk 0:03:00]}  e5 {[%clk 0:02:59]} 2. Nf3 {[%clk 0:03:00]}  Nc6 {[%clk 0:02:59]} 3. Bb5 {[%clk 0:03:00]}  a6 {[%clk 0:02:58]} 4. Ba4 {[%clk 0:03:00]}  Nf6 {[%clk 0:02:58]} 5. Qe2 {[%clk 0:02:59]}  b5 {[%clk 0:02:56]} 6. Bb3 {[%clk 0:02:59]}  Bc5 {[%clk 0:02:51]} 7. c3 {[%clk 0:02:59]}  d6 {[%clk 0:02:51]} 8. O-O {[%clk 0:02:58]}  O-O {[%clk 0:02:50]} 9. d3 {[%clk 0:02:58]}  h6 {[%clk 0:02:42]} 10. Be3 {[%clk 0:02:58]}  Ba7 {[%clk 0:02:33]} 11. Nbd2 {[%clk 0:02:51]}  Bb7 {[%clk 0:02:31]} 12. Bxa7 {[%clk 0:02:47]}  Rxa7 {[%clk 0:02:29]} 13. Rfe1 {[%clk 0:02:29]}  Ra8 {[%clk 0:02:26]} 14. Nf1 {[%clk 0:02:29]}  Ne7 {[%clk 0:02:26]} 15. Ng3 {[%clk 0:02:28]}  Ng6 {[%clk 0:02:23]} 16. Qd2 {[%clk 0:02:21]}  Re8 {[%clk 0:02:18]} 17. Nf5 {[%clk 0:02:21]}  d5 {[%clk 0:02:09]} 18. Nxh6+ {[%clk 0:01:50]}  gxh6 {[%clk 0:02:06]} 19. Qxh6 {[%clk 0:01:51]}  Nh7 {[%clk 0:01:54]} 20. Re3 {[%clk 0:01:29]}  Qf6 {[%clk 0:01:48]} 21. exd5 {[%clk 0:01:24]}  Rad8 {[%clk 0:01:43]} 22. c4 {[%clk 0:01:22]}  Qf4 {[%clk 0:01:34]} 23. Qh5 {[%clk 0:01:03]}  Nf6 {[%clk 0:01:30]} 24. Qg5 {[%clk 0:00:57]}  Ng4 {[%clk 0:01:18]} 25. Re4 {[%clk 0:00:49]}  Qxg5 {[%clk 0:01:18]} 26. Nxg5 {[%clk 0:00:50]}  f5 {[%clk 0:01:16]} 27. Ree1 {[%clk 0:00:48]}  Re7 {[%clk 0:00:59]} 28. f3 {[%clk 0:00:46]}  Nf6 {[%clk 0:00:58]} 29. Ne6 {[%clk 0:00:39]}  Rde8 {[%clk 0:00:52]} 30. Nc5 {[%clk 0:00:39]}  Bc8 {[%clk 0:00:51]} 31. cxb5 {[%clk 0:00:39]}  axb5 {[%clk 0:00:50]} 32. d6+ {[%clk 0:00:39]}  Rf7 {[%clk 0:00:49]} 33. dxc7 {[%clk 0:00:33]}  Kg7 {[%clk 0:00:46]} 34. Bxf7 {[%clk 0:00:33]}  Kxf7 {[%clk 0:00:46]} 35. a4 {[%clk 0:00:33]}  Re7 {[%clk 0:00:25]} 36. axb5 {[%clk 0:00:30]}  Rxc7 {[%clk 0:00:24]} 37. b4 {[%clk 0:00:30]}  Nd5 {[%clk 0:00:21]} 38. Reb1 {[%clk 0:00:29]}  Nb6 {[%clk 0:00:19]} 39. Rc1 {[%clk 0:00:26]}  Nf4 {[%clk 0:00:18]} 40. g3 {[%clk 0:00:25]}  Nfd5 {[%clk 0:00:18]} 41. Na6 {[%clk 0:00:24]}  Rxc1+ {[%clk 0:00:04]} 42. Rxc1 {[%clk 0:00:25]}  Bxa6 {[%clk 0:00:03]} 43. bxa6 {[%clk 0:00:24]}  Nxb4 {[%clk 0:00:03]} 44. a7 {[%clk 0:00:25]}  Nxd3 {[%clk 0:00:02]} 45. Rb1 {[%clk 0:00:24]} 1-0


[Site "https://www.chess.com"]